Workbook

Sheet MATERIA PRIMA Y MATERIALES
A1: RESTAURANTE CAMINOS DE HERRADURA
A3: INVENTARIOS
D9: CODIGO | E9: MATERIA PRIMA
D10: 1.1.04.01 | E10: COCINAS INDUSTRIALES GRANDES
D11: 1.1.04.02 | E11: COCINAS INDUSTRIALES PEQUEÑAS
D12: 1.1.04.03 | E12: REFRIGERADORA 13 PIES
D13: 1.1.04.04 | E13: CONGELADOR
D14: 1.1.04.05 | E14: HORNO INDUSTRIAL
D15: 1.1.04.06 | E15: REPISA PARA VAJILLA
D16: 1.1.04.07 | E16: MESA
D17: 1.1.04.08 | E17: TANQUES DE GAS
D18: 1.1.04.09 | E18: OLLAS DE PRESIÓN
D19: 1.1.04.10 | E19: OLLAS CON TAPAS GRANDES
D20: 1.1.04.11 | E20: OLLAS CON TAPAS MEDIANAS
D21: 1.1.04.12 | E21: OLLAS CON TAPAS PEQUEÑAS
D22: 1.1.04.13 | E22: VALDES
D23: 1.1.04.14 | E23: PAILA
D24: 1.1.04.15 | E24: LICUADORA INDUSTRIAL
D25: 1.1.04.16 | E25: LICUADORA OSTER
D26: 1.1.04.17 | E26: FREIDORES
D27: 1.1.04.18 | E27: REFRIGERADORA MABE
D28: 1.1.04.19 | E28: DAEWOO
D29: 1.1.04.20 | E29: EQUIPO DE SONIDO SONY
D30: 1.1.04.21 | E30: MESAS 2 METROS
D31: 1.1.04.22 | E31: MESAS 1 METRO
D32: 1.1.04.23 | E32: SILLAS NEGRAS
D33: 1.1.04.24 | E33: MANTELES MANTECA M/2m
D34: 1.1.04.25 | E34: SOBREMANTELES AMARILLOS
D35: 1.1.04.26 | E35: SOBREMANTELES ROJOS
D36: 1.1.04.27 | E36: SOBREMANTELES DORADOS
D37: 1.1.04.28 | E37: SOBREMANTELES ROSADOS
D38: 1.1.04.29 | E38: MANTELES COLORES M/1m
D39: 1.1.04.30 | E39: VIDRIOS M/1m
D40: 1.1.04.31 | E40: SALEROS
D41: 1.1.04.32 | E41: CAJAS PARA CUBIERTOS
D42: 1.1.04.33 | E42: BAR
D43: 1.1.04.34 | E43: CUCHARAS
D44: 1.1.04.35 | E44: CUCHILLOS DE MESA
D45: 1.1.04.36 | E45: CUHARILLAS
D46: 1.1.04.37 | E46: CUCHILLOS DE COCINA
D47: 1.1.04.38 | E47: CUCHARETAS
D48: 1.1.04.39 | E48: CUCHARONES
D49: 1.1.04.40 | E49: DIABLO
D50: 1.1.04.41 | E50: PLATO SOPERO
D51: 1.1.04.42 | E51: PLATO FUERTE
D52: 1.1.04.43 | E52: PLATO ENTRADA
D53: 1.1.04.44 | E53: PLATO POSTRE
D54: 1.1.04.45 | E54: VASO
D55: 1.1.04.46 | E55: COPA DE AGUA
D56: 1.1.04.47 | E56: COPA DE VINO
D57: 1.1.04.48 | E57: CENICEROS
D58: 1.1.04.49 | E58: TENEDORES
D59: 1.1.04.50 | E59: SERVILLETAS
D60: 1.1.04.51 | E60: CONTRATOS
D61: 1.1.04.52 | E61: #'M53'!A1

Sheet M1
A1: RESTAURANTE CAMINOS DE HERRADURA
A3: KARDEX
A5: Artículo: | B5: ='MATERIA PRIMA Y MATERIALES'!E10 -> COCINAS INDUSTRIALES GRANDES | E5: Unidad de medida: | G5: UNIDADES | I5: Codigo: | J5: ='MATERIA PRIMA Y MATERIALES'!D10 -> 1.1.04.01
E6: Fecha de Corte: | G6: =NOW() -> 2010-06-10T17:05:11.150
A8: FECHA | B8: ORDEN DE PRODUCCIÓN | C8: DETALLE | J8: EXISTENCIAS | M8: RESPONSABLE
D9: CANT. | E9: P.U. | F9: P.T. | G9: CANT. | H9: P.U. | I9: P.T. | J9: CANT. | K9: P.U. | L9: P.T.
J10: 3 | K10: $180.00 | L10: $540.00
A12: 2010-02-01 | C12: SITUACIÓN INICIAL | D12: 3 | E12: $180.00 | F12: =$D$12*$E$12 -> $540.00 | J12: =J13+D12 -> 3 | K12: =$L$12/$J$12 -> $180.00 | L12: =L13+F12 -> $540.00

Sheet M2
A1: RESTAURANTE CAMINOS DE HERRADURA
A3: KARDEX
A5: Artículo: | B5: ='MATERIA PRIMA Y MATERIALES'!E11 -> COCINAS INDUSTRIALES PEQUEÑAS | E5: Unidad de medida: | G5: ='M1'!$G$5 -> UNIDADES | I5: Codigo: | J5: ='MATERIA PRIMA Y MATERIALES'!D11 -> 1.1.04.02
E6: Fecha de Corte: | G6: =NOW() -> 2010-06-10T17:05:11.150
A8: FECHA | B8: ORDEN DE PRODUCCIÓN | C8: DETALLE | J8: EXISTENCIAS | M8: RESPONSABLE
D9: CANT. | E9: P.U. | F9: P.T. | G9: CANT. | H9: P.U. | I9: P.T. | J9: CANT. | K9: P.U. | L9: P.T.
J10: 2 | K10: $90.00 | L10: $180.00
A12: 2010-02-01 | C12: SITUACIÓN INICIAL | D12: 2 | E12: $90.00 | F12: =$D$12*$E$12 -> $180.00 | J12: =J13+D12 -> 2 | K12: =$L$12/$J$12 -> $90.00 | L12: =L13+F12 -> $180.00

Sheet M3
A1: RESTAURANTE CAMINOS DE HERRADURA
A3: KARDEX
A5: Artículo: | B5: ='MATERIA PRIMA Y MATERIALES'!E12 -> REFRIGERADORA 13 PIES | E5: Unidad de medida: | G5: ='M1'!$G$5 -> UNIDADES | I5: Codigo: | J5: ='MATERIA PRIMA Y MATERIALES'!D12 -> 1.1.04.03
E6: Fecha de Corte: | G6: =NOW() -> 2010-06-10T17:05:11.150
A8: FECHA | B8: ORDEN DE PRODUCCIÓN | C8: DETALLE | D8: ENTRADAS | G8: SALIDAS | J8: EXISTENCIAS | M8: RESPONSABLE
D9: CANT. | E9: P.U. | F9: P.T. | G9: CANT. | H9: P.U. | I9: P.T. | J9: CANT. | K9: P.U. | L9: P.T.
J10: 1 | K10: $180.00 | L10: $180.00
A12: 2010-02-01 | C12: SITUACIÓN INICIAL | D12: 1 | E12: $180.00 | F12: =$D$12*$E$12 -> $180.00 | J12: =J13+D12 -> 1 | K12: =$L$12/$J$12 -> $180.00 | L12: =L13+F12 -> $180.00

Sheet M4
A1: RESTAURANTE CAMINOS DE HERRADURA
A3: KARDEX
A5: Artículo: | B5: ='MATERIA PRIMA Y MATERIALES'!E13 -> CONGELADOR | E5: Unidad de medida: | G5: ='M1'!$G$5 -> UNIDADES | I5: Codigo: | J5: ='MATERIA PRIMA Y MATERIALES'!D13 -> 1.1.04.04
E6: Fecha de Corte: | G6: =NOW() -> 2010-06-10T17:05:11.150
A8: FECHA | B8: ORDEN DE PRODUCCIÓN | C8: DETALLE | J8: EXISTENCIAS | M8: RESPONSABLE
D9: CANT. | E9: P.U. | F9: P.T. | G9: CANT. | H9: P.U. | I9: P.T. | J9: CANT. | K9: P.U. | L9: P.T.
J10: 1 | K10: $700.00 | L10: $700.00
A12: 2010-02-01 | C12: SITUACIÓN INICIAL | D12: 1 | E12: $700.00 | F12: =$D$12*$E$12 -> $700.00 | J12: =J13+D12 -> 1 | K12: =$L$12/$J$12 -> $700.00 | L12: =L13+F12 -> $700.00

Sheet M5
A1: RESTAURANTE CAMINOS DE HERRADURA
A3: KARDEX
A5: Artículo: | B5: ='MATERIA PRIMA Y MATERIALES'!E14 -> HORNO INDUSTRIAL | E5: Unidad de medida: | G5: ='M1'!$G$5 -> UNIDADES | I5: Codigo: | J5: ='MATERIA PRIMA Y MATERIALES'!D14 -> 1.1.04.05
E6: Fecha de Corte: | G6: =NOW() -> 2010-06-10T17:05:11.150
A8: FECHA | B8: ORDEN DE PRODUCCIÓN | C8: DETALLE | J8: EXISTENCIAS | M8: RESPONSABLE
D9: CANT. | E9: P.U. | F9: P.T. | G9: CANT. | H9: P.U. | I9: P.T. | J9: CANT. | K9: P.U. | L9: P.T.
J10: 1 | K10: $500.00 | L10: $500.00
A12: 2010-02-01 | C12: SITUACIÓN INICIAL | D12: 1 | E12: $500.00 | F12: =$D$12*$E$12 -> $500.00 | J12: =J13+D12 -> 1 | K12: =$L$12/$J$12 -> $500.00 | L12: =L13+F12 -> $500.00

Sheet M6
A1: RESTAURANTE CAMINOS DE HERRADURA
A3: KARDEX
A5: Artículo: | B5: ='MATERIA PRIMA Y MATERIALES'!E15 -> REPISA PARA VAJILLA | E5: Unidad de medida: | G5: ='M1'!$G$5 -> UNIDADES | I5: Codigo: | J5: ='MATERIA PRIMA Y MATERIALES'!D15 -> 1.1.04.06
E6: Fecha de Corte: | G6: =NOW() -> 2010-06-10T17:05:11.150
A8: FECHA | B8: ORDEN DE PRODUCCIÓN | C8: DETALLE | J8: EXISTENCIAS | M8: RESPONSABLE
D9: CANT. | E9: P.U. | F9: P.T. | G9: CANT. | H9: P.U. | I9: P.T. | J9: CANT. | K9: P.U. | L9: P.T.
J10: 1 | K10: $150.00 | L10: $150.00
A12: 2010-02-01 | C12: SITUACIÓN INICIAL | D12: 1 | E12: $150.00 | F12: =$D$12*$E$12 -> $150.00 | J12: =J13+D12 -> 1 | K12: =$L$12/$J$12 -> $150.00 | L12: =L13+F12 -> $150.00

Sheet M7
A1: RESTAURANTE CAMINOS DE HERRADURA
A3: KARDEX
A5: Artículo: | B5: ='MATERIA PRIMA Y MATERIALES'!E16 -> MESA | E5: Unidad de medida: | G5: UNIDADES | I5: Codigo: | J5: ='MATERIA PRIMA Y MATERIALES'!D16 -> 1.1.04.07
E6: Fecha de Corte: | G6: =NOW() -> 2010-06-10T17:05:11.150
A8: FECHA | B8: ORDEN DE PRODUCCIÓN | C8: DETALLE | J8: EXISTENCIAS | M8: RESPONSABLE
D9: CANT. | E9: P.U. | F9: P.T. | G9: CANT. | H9: P.U. | I9: P.T. | J9: CANT. | K9: P.U. | L9: P.T.
J10: 1 | K10: $90.00 | L10: $90.00
A12: 2010-02-01 | C12: SITUACIÓN INICIAL | D12: 1 | E12: $90.00 | F12: =$D$12*$E$12 -> $90.00 | J12: =J13+D12 -> 1 | K12: =$L$12/$J$12 -> $90.00 | L12: =L13+F12 -> $90.00

Sheet M8
A1: RESTAURANTE CAMINOS DE HERRADURA
A3: KARDEX
A5: Artículo: | B5: ='MATERIA PRIMA Y MATERIALES'!E17 -> TANQUES DE GAS | E5: Unidad de medida: | G5: UNIDADES | I5: Codigo: | J5: ='MATERIA PRIMA Y MATERIALES'!D17 -> 1.1.04.08
E6: Fecha de Corte: | G6: =NOW() -> 2010-06-10T17:05:11.150
A8: FECHA | B8: ORDEN DE PRODUCCIÓN | C8: DETALLE | J8: EXISTENCIAS | M8: RESPONSABLE
D9: CANT. | E9: P.U. | F9: P.T. | G9: CANT. | H9: P.U. | I9: P.T. | J9: CANT. | K9: P.U. | L9: P.T.
J10: 6 | K10: $30.00 | L10: $180.00
A12: 2010-02-01 | C12: SITUACIÓN INICIAL | D12: 6 | E12: $30.00 | F12: =$D$12*$E$12 -> $180.00 | J12: =J13+D12 -> 6 | K12: =$L$12/$J$12 -> $30.00 | L12: =L13+F12 -> $180.00

Sheet M9
A1: RESTAURANTE CAMINOS DE HERRADURA
A3: KARDEX
A5: Artículo: | B5: ='MATERIA PRIMA Y MATERIALES'!E18 -> OLLAS DE PRESIÓN | E5: Unidad de medida: | G5: UNIDADES | I5: Codigo: | J5: ='MATERIA PRIMA Y MATERIALES'!D18 -> 1.1.04.09
E6: Fecha de Corte: | G6: =NOW() -> 2010-06-10T17:05:11.150
A8: FECHA | B8: ORDEN DE PRODUCCIÓN | C8: DETALLE | J8: EXISTENCIAS | M8: RESPONSABLE
D9: CANT. | E9: P.U. | F9: P.T. | G9: CANT. | H9: P.U. | I9: P.T. | J9: CANT. | K9: P.U. | L9: P.T.
J10: 5 | K10: $60.00 | L10: $300.00
A12: 2010-02-01 | C12: SITUACIÓN INICIAL | D12: 5 | E12: $60.00 | F12: =$D$12*$E$12 -> $300.00 | J12: =J13+D12 -> 5 | K12: =$L$12/$J$12 -> $60.00 | L12: =L13+F12 -> $300.00

Sheet M10
A1: RESTAURANTE CAMINOS DE HERRADURA
A3: KARDEX
A5: Artículo: | B5: ='MATERIA PRIMA Y MATERIALES'!E19 -> OLLAS CON TAPAS GRANDES | E5: Unidad de medida: | G5: UNIDADES | I5: Codigo: | J5: ='MATERIA PRIMA Y MATERIALES'!D19 -> 1.1.04.10
E6: Fecha de Corte: | G6: =NOW() -> 2010-06-10T17:05:11.150
A8: FECHA | B8: ORDEN DE PRODUCCIÓN | C8: DETALLE | J8: EXISTENCIAS | M8: RESPONSABLE
D9: CANT. | E9: P.U. | F9: P.T. | G9: CANT. | H9: P.U. | I9: P.T. | J9: CANT. | K9: P.U. | L9: P.T.
J10: 4 | K10: $130.00 | L10: $520.00
A12: 2010-02-01 | C12: SITUACIÓN INICIAL | D12: 4 | E12: $130.00 | F12: =$D$12*$E$12 -> $520.00 | J12: =J13+D12 -> 4 | K12: =$L$12/$J$12 -> $130.00 | L12: =L13+F12 -> $520.00

Sheet M11
A1: RESTAURANTE CAMINOS DE HERRADURA
A3: KARDEX
A5: Artículo: | B5: ='MATERIA PRIMA Y MATERIALES'!E20 -> OLLAS CON TAPAS MEDIANAS | E5: Unidad de medida: | G5: UNIDADES | I5: Codigo: | J5: ='MATERIA PRIMA Y MATERIALES'!D20 -> 1.1.04.11
E6: Fecha de Corte: | G6: =NOW() -> 2010-06-10T17:05:11.150
A8: FECHA | B8: ORDEN DE PRODUCCIÓN | C8: DETALLE | J8: EXISTENCIAS | M8: RESPONSABLE
D9: CANT. | E9: P.U. | F9: P.T. | G9: CANT. | H9: P.U. | I9: P.T. | J9: CANT. | K9: P.U. | L9: P.T.
J10: 8 | K10: $60.00 | L10: $480.00
A12: 2010-02-01 | C12: SITUACIÓN INICIAL | D12: 8 | E12: $60.00 | F12: =$D$12*$E$12 -> $480.00 | J12: =J13+D12 -> 8 | K12: =$L$12/$J$12 -> $60.00 | L12: =L13+F12 -> $480.00

Sheet M12
A1: RESTAURANTE CAMINOS DE HERRADURA
A3: KARDEX
A5: Artículo: | B5: ='MATERIA PRIMA Y MATERIALES'!E21 -> OLLAS CON TAPAS PEQUEÑAS | E5: Unidad de medida: | G5: UNIDADES | I5: Codigo: | J5: ='MATERIA PRIMA Y MATERIALES'!D21 -> 1.1.04.12
E6: Fecha de Corte: | G6: =NOW() -> 2010-06-10T17:05:11.150
A8: FECHA | B8: ORDEN DE PRODUCCIÓN | C8: DETALLE | J8: EXISTENCIAS | M8: RESPONSABLE
D9: CANT. | E9: P.U. | F9: P.T. | G9: CANT. | H9: P.U. | I9: P.T. | J9: CANT. | K9: P.U. | L9: P.T.
J10: 10 | K10: $30.00 | L10: $300.00
A12: 2010-02-01 | C12: SITUACIÓN INICIAL | D12: 10 | E12: $30.00 | F12: =$D$12*$E$12 -> $300.00 | J12: =J13+D12 -> 10 | K12: =$L$12/$J$12 -> $30.00 | L12: =L13+F12 -> $300.00

Sheet M13
A1: RESTAURANTE CAMINOS DE HERRADURA
A3: KARDEX
A5: Artículo: | B5: ='MATERIA PRIMA Y MATERIALES'!E22 -> VALDES | E5: Unidad de medida: | G5: UNIDADES | I5: Codigo: | J5: ='MATERIA PRIMA Y MATERIALES'!D22 -> 1.1.04.13
E6: Fecha de Corte: | G6: =NOW() -> 2010-06-10T17:05:11.150
A8: FECHA | B8: ORDEN DE PRODUCCIÓN | C8: DETALLE | J8: EXISTENCIAS | M8: RESPONSABLE
D9: CANT. | E9: P.U. | F9: P.T. | G9: CANT. | H9: P.U. | I9: P.T. | J9: CANT. | K9: P.U. | L9: P.T.
J10: 4 | K10: $4.00 | L10: $16.00
A12: 2010-02-01 | C12: SITUACIÓN INICIAL | D12: 4 | E12: $4.00 | F12: =$D$12*$E$12 -> $16.00 | J12: =J13+D12 -> 4 | K12: =$L$12/$J$12 -> $4.00 | L12: =L13+F12 -> $16.00

Sheet M14
A1: RESTAURANTE CAMINOS DE HERRADURA
A3: KARDEX
A5: Artículo: | B5: ='MATERIA PRIMA Y MATERIALES'!E23 -> PAILA | E5: Unidad de medida: | G5: UNIDADES | I5: Codigo: | J5: ='MATERIA PRIMA Y MATERIALES'!D23 -> 1.1.04.14
E6: Fecha de Corte: | G6: =NOW() -> 2010-06-10T17:05:11.150
A8: FECHA | B8: ORDEN DE PRODUCCIÓN | C8: DETALLE | J8: EXISTENCIAS | M8: RESPONSABLE
D9: CANT. | E9: P.U. | F9: P.T. | G9: CANT. | H9: P.U. | I9: P.T. | J9: CANT. | K9: P.U. | L9: P.T.
J10: 5 | K10: $80.00 | L10: $400.00
A12: 2010-02-01 | C12: SITUACIÓN INICIAL | D12: 5 | E12: $80.00 | F12: =$D$12*$E$12 -> $400.00 | J12: =J13+D12 -> 5 | K12: =$L$12/$J$12 -> $80.00 | L12: =L13+F12 -> $400.00

Sheet M15
A1: RESTAURANTE CAMINOS DE HERRADURA
A3: KARDEX
A5: Artículo: | B5: ='MATERIA PRIMA Y MATERIALES'!E24 -> LICUADORA INDUSTRIAL | E5: Unidad de medida: | G5: UNIDADES | I5: Codigo: | J5: ='MATERIA PRIMA Y MATERIALES'!D24 -> 1.1.04.15
E6: Fecha de Corte: | G6: =NOW() -> 2010-06-10T17:05:11.150
A8: FECHA | B8: ORDEN DE PRODUCCIÓN | C8: DETALLE | J8: EXISTENCIAS | M8: RESPONSABLE
D9: CANT. | E9: P.U. | F9: P.T. | G9: CANT. | H9: P.U. | I9: P.T. | J9: CANT. | K9: P.U. | L9: P.T.
J10: 1 | K10: $500.00 | L10: $500.00
A12: 2010-02-01 | C12: SITUACIÓN INICIAL | D12: 1 | E12: $500.00 | F12: =$D$12*$E$12 -> $500.00 | J12: =J13+D12 -> 1 | K12: =$L$12/$J$12 -> $500.00 | L12: =L13+F12 -> $500.00

Sheet M16
A1: RESTAURANTE CAMINOS DE HERRADURA
A3: KARDEX
A5: Artículo: | B5: ='MATERIA PRIMA Y MATERIALES'!E25 -> LICUADORA OSTER | E5: Unidad de medida: | G5: UNIDADES | I5: Codigo: | J5: ='MATERIA PRIMA Y MATERIALES'!D25 -> 1.1.04.16
E6: Fecha de Corte: | G6: =NOW() -> 2010-06-10T17:05:11.150
A8: FECHA | B8: ORDEN DE PRODUCCIÓN | C8: DETALLE | J8: EXISTENCIAS | M8: RESPONSABLE
D9: CANT. | E9: P.U. | F9: P.T. | G9: CANT. | H9: P.U. | I9: P.T. | J9: CANT. | K9: P.U. | L9: P.T.
J10: 1 | K10: $60.00 | L10: $60.00
A12: 2010-02-01 | C12: SITUACIÓN INICIAL | D12: 1 | E12: $60.00 | F12: =$D$12*$E$12 -> $60.00 | J12: =J13+D12 -> 1 | K12: =$L$12/$J$12 -> $60.00 | L12: =L13+F12 -> $60.00

Sheet M17
A1: RESTAURANTE CAMINOS DE HERRADURA
A3: KARDEX
A5: Artículo: | B5: ='MATERIA PRIMA Y MATERIALES'!E26 -> FREIDORES | E5: Unidad de medida: | G5: UNIDADES | I5: Codigo: | J5: ='MATERIA PRIMA Y MATERIALES'!D26 -> 1.1.04.17
E6: Fecha de Corte: | G6: =NOW() -> 2010-06-10T17:05:11.150
A8: FECHA | B8: ORDEN DE PRODUCCIÓN | C8: DETALLE | J8: EXISTENCIAS | M8: RESPONSABLE
D9: CANT. | E9: P.U. | F9: P.T. | G9: CANT. | H9: P.U. | I9: P.T. | J9: CANT. | K9: P.U. | L9: P.T.
J10: 6 | K10: $4.50 | L10: $27.00
A12: 2010-02-01 | C12: SITUACIÓN INICIAL | D12: 6 | E12: $4.50 | F12: =$D$12*$E$12 -> $27.00 | J12: =J13+D12 -> 6 | K12: =$L$12/$J$12 -> $4.50 | L12: =L13+F12 -> $27.00

Sheet M18
A1: RESTAURANTE CAMINOS DE HERRADURA
A3: KARDEX
A5: Artículo: | B5: ='MATERIA PRIMA Y MATERIALES'!E27 -> REFRIGERADORA MABE | E5: Unidad de medida: | G5: UNIDADES | I5: Codigo: | J5: ='MATERIA PRIMA Y MATERIALES'!D27 -> 1.1.04.18
E6: Fecha de Corte: | G6: =NOW() -> 2010-06-10T17:05:11.150
A8: FECHA | B8: ORDEN DE PRODUCCIÓN | C8: DETALLE | J8: EXISTENCIAS | M8: RESPONSABLE
D9: CANT. | E9: P.U. | F9: P.T. | G9: CANT. | H9: P.U. | I9: P.T. | J9: CANT. | K9: P.U. | L9: P.T.
J10: 1 | K10: $600.00 | L10: $600.00
A12: 2010-02-01 | C12: SITUACIÓN INICIAL | D12: 1 | E12: $600.00 | F12: =$D$12*$E$12 -> $600.00 | J12: =J13+D12 -> 1 | K12: =$L$12/$J$12 -> $600.00 | L12: =L13+F12 -> $600.00

Sheet M19
A1: RESTAURANTE CAMINOS DE HERRADURA
A3: KARDEX
A5: Artículo: | B5: ='MATERIA PRIMA Y MATERIALES'!E28 -> DAEWOO | E5: Unidad de medida: | G5: UNIDADES | I5: Codigo: | J5: ='MATERIA PRIMA Y MATERIALES'!D28 -> 1.1.04.19
E6: Fecha de Corte: | G6: =NOW() -> 2010-06-10T17:05:11.150
A8: FECHA | B8: ORDEN DE PRODUCCIÓN | C8: DETALLE | J8: EXISTENCIAS | M8: RESPONSABLE
D9: CANT. | E9: P.U. | F9: P.T. | G9: CANT. | H9: P.U. | I9: P.T. | J9: CANT. | K9: P.U. | L9: P.T.
J10: 2 | K10: $150.00 | L10: $300.00
A12: 2010-02-01 | C12: SITUACIÓN INICIAL | D12: 2 | E12: $150.00 | F12: =$D$12*$E$12 -> $300.00 | J12: =J13+D12 -> 2 | K12: =$L$12/$J$12 -> $150.00 | L12: =L13+F12 -> $300.00

Sheet M20
A1: RESTAURANTE CAMINOS DE HERRADURA
A3: KARDEX
A5: Artículo: | B5: ='MATERIA PRIMA Y MATERIALES'!E29 -> EQUIPO DE SONIDO SONY | E5: Unidad de medida: | G5: UNIDADES | I5: Codigo: | J5: ='MATERIA PRIMA Y MATERIALES'!D29 -> 1.1.04.20
E6: Fecha de Corte: | G6: =NOW() -> 2010-06-10T17:05:11.150
A8: FECHA | B8: ORDEN DE PRODUCCIÓN | C8: DETALLE | J8: EXISTENCIAS | M8: RESPONSABLE
D9: CANT. | E9: P.U. | F9: P.T. | G9: CANT. | H9: P.U. | I9: P.T. | J9: CANT. | K9: P.U. | L9: P.T.
J10: 1 | K10: $130.00 | L10: $130.00
A12: 2010-02-01 | C12: SITUACIÓN INICIAL | D12: 1 | E12: $130.00 | F12: =$D$12*$E$12 -> $130.00 | J12: =J13+D12 -> 1 | K12: =$L$12/$J$12 -> $130.00 | L12: =L13+F12 -> $130.00

Sheet M21
A1: RESTAURANTE CAMINOS DE HERRADURA
A3: KARDEX
A5: Artículo: | B5: ='MATERIA PRIMA Y MATERIALES'!E30 -> MESAS 2 METROS | E5: Unidad de medida: | G5: UNIDADES | I5: Codigo: | J5: ='MATERIA PRIMA Y MATERIALES'!D30 -> 1.1.04.21
E6: Fecha de Corte: | G6: =NOW() -> 2010-06-10T17:05:11.150
A8: FECHA | B8: ORDEN DE PRODUCCIÓN | C8: DETALLE | J8: EXISTENCIAS | M8: RESPONSABLE
D9: CANT. | E9: P.U. | F9: P.T. | G9: CANT. | H9: P.U. | I9: P.T. | J9: CANT. | K9: P.U. | L9: P.T.
J10: 28 | K10: $60.00 | L10: $1,680.00
A12: 2010-02-01 | C12: SITUACIÓN INICIAL | D12: 28 | E12: $60.00 | F12: =$D$12*$E$12 -> $1,680.00 | J12: =J13+D12 -> 28 | K12: =$L$12/$J$12 -> $60.00 | L12: =L13+F12 -> $1,680.00

Sheet M22
A1: RESTAURANTE CAMINOS DE HERRADURA
A3: KARDEX
A5: Articulo: | B5: ='MATERIA PRIMA Y MATERIALES'!E31 -> MESAS 1 METRO | E5: Unidad de medida: | G5: UNIDADES | I5: Codigo: | J5: ='MATERIA PRIMA Y MATERIALES'!D31 -> 1.1.04.22
E6: Fecha de Corte: | G6: =NOW() -> 2010-06-10T17:05:11.150
A8: FECHA | B8: ORDEN DE PRODUCCIÓN | C8: DETALLE | J8: EXISTENCIAS | M8: RESPONSABLE
D9: CANT. | E9: P.U. | F9: P.T. | G9: CANT. | H9: P.U. | I9: P.T. | J9: CANT. | K9: P.U. | L9: P.T.
J10: 10 | K10: $40.00 | L10: $400.00
A12: 2010-02-01 | C12: SITUACIÓN INICIAL | D12: 10 | E12: $40.00 | F12: =$D$12*$E$12 -> $400.00 | J12: =J13+D12 -> 10 | K12: =$L$12/$J$12 -> $40.00 | L12: =L13+F12 -> $400.00

Sheet M23
A1: RESTAURANTE CAMINOS DE HERRADURA
A3: KARDEX
A5: Artículo: | B5: ='MATERIA PRIMA Y MATERIALES'!E32 -> SILLAS NEGRAS | E5: Unidad de medida: | G5: UNIDADES | I5: Codigo: | J5: ='MATERIA PRIMA Y MATERIALES'!D32 -> 1.1.04.23
E6: Fecha de Corte: | G6: =NOW() -> 2010-06-10T17:05:11.150
A8: FECHA | B8: ORDEN DE PRODUCCIÓN | C8: DETALLE | J8: EXISTENCIAS | M8: RESPONSABLE
D9: CANT. | E9: P.U. | F9: P.T. | G9: CANT. | H9: P.U. | I9: P.T. | J9: CANT. | K9: P.U. | L9: P.T.
J10: 300 | K10: $13.00 | L10: $3,900.00
A12: 2010-02-01 | C12: SITUACIÓN INICIAL | D12: 300 | E12: $13.00 | F12: =$D$12*$E$12 -> $3,900.00 | J12: =J13+D12 -> 300 | K12: =$L$12/$J$12 -> $13.00 | L12: =L13+F12 -> $3,900.00

Sheet M24
A1: RESTAURANTE CAMINOS DE HERRADURA
A3: KARDEX
A5: Artículo: | B5: ='MATERIA PRIMA Y MATERIALES'!E33 -> MANTELES MANTECA M/2m | E5: Unidad de medida: | G5: UNIDADES | I5: Codigo: | J5: ='MATERIA PRIMA Y MATERIALES'!D33 -> 1.1.04.24
E6: Fecha de Corte: | G6: =NOW() -> 2010-06-10T17:05:11.150
A8: FECHA | B8: ORDEN DE PRODUCCIÓN | C8: DETALLE | J8: EXISTENCIAS | M8: RESPONSABLE
D9: CANT. | E9: P.U. | F9: P.T. | G9: CANT. | H9: P.U. | I9: P.T. | J9: CANT. | K9: P.U. | L9: P.T.
J10: 48 | K10: $15.00 | L10: $720.00
A12: 2010-02-01 | C12: SITUACIÓN INICIAL | D12: 48 | E12: $15.00 | F12: =$D$12*$E$12 -> $720.00 | J12: =J13+D12 -> 48 | K12: =$L$12/$J$12 -> $15.00 | L12: =L13+F12 -> $720.00

Sheet M25
A1: RESTAURANTE CAMINOS DE HERRADURA
A3: KARDEX
A5: Artículo: | B5: ='MATERIA PRIMA Y MATERIALES'!E34 -> SOBREMANTELES AMARILLOS | E5: Unidad de medida: | G5: UNIDADES | I5: Codigo: | J5: ='MATERIA PRIMA Y MATERIALES'!D34 -> 1.1.04.25
E6: Fecha de Corte: | G6: =NOW() -> 2010-06-10T17:05:11.150
A8: FECHA | B8: ORDEN DE PRODUCCIÓN | C8: DETALLE | J8: EXISTENCIAS | M8: RESPONSABLE
D9: CANT. | E9: P.U. | F9: P.T. | G9: CANT. | H9: P.U. | I9: P.T. | J9: CANT. | K9: P.U. | L9: P.T.
J10: 30 | K10: $3.00 | L10: $90.00
A12: 2010-02-01 | C12: SITUACIÓN INICIAL | D12: 30 | E12: $3.00 | F12: =$D$12*$E$12 -> $90.00 | J12: =J13+D12 -> 30 | K12: =$L$12/$J$12 -> $3.00 | L12: =L13+F12 -> $90.00

Sheet M26
A1: RESTAURANTE CAMINOS DE HERRADURA
A3: KARDEX
A5: Artículo: | B5: ='MATERIA PRIMA Y MATERIALES'!E35 -> SOBREMANTELES ROJOS | E5: Unidad de medida: | G5: UNIDADES | I5: Codigo: | J5: ='MATERIA PRIMA Y MATERIALES'!D35 -> 1.1.04.26
E6: Fecha de Corte: | G6: =NOW() -> 2010-06-10T17:05:11.150
A8: FECHA | B8: ORDEN DE PRODUCCIÓN | C8: DETALLE | J8: EXISTENCIAS | M8: RESPONSABLE
D9: CANT. | E9: P.U. | F9: P.T. | G9: CANT. | H9: P.U. | I9: P.T. | J9: CANT. | K9: P.U. | L9: P.T.
J10: 30 | K10: $3.00 | L10: $90.00
A12: 2010-02-01 | C12: SITUACIÓN INICIAL | D12: 30 | E12: $3.00 | F12: =$D$12*$E$12 -> $90.00 | J12: =J13+D12 -> 30 | K12: =$L$12/$J$12 -> $3.00 | L12: =L13+F12 -> $90.00

Sheet M27
A1: RESTAURANTE CAMINOS DE HERRADURA
A3: KARDEX
A5: Artículo: | B5: ='MATERIA PRIMA Y MATERIALES'!E36 -> SOBREMANTELES DORADOS | E5: Unidad de medida: | G5: UNIDADES | I5: Codigo: | J5: ='MATERIA PRIMA Y MATERIALES'!D36 -> 1.1.04.27
E6: Fecha de Corte: | G6: =NOW() -> 2010-06-10T17:05:11.150
A8: FECHA | B8: ORDEN DE PRODUCCIÓN | C8: DETALLE | J8: EXISTENCIAS | M8: RESPONSABLE
D9: CANT. | E9: P.U. | F9: P.T. | G9: CANT. | H9: P.U. | I9: P.T. | J9: CANT. | K9: P.U. | L9: P.T.
J10: 30 | K10: $3.00 | L10: $90.00
A12: 2010-02-01 | C12: SITUACIÓN INICIAL | D12: 30 | E12: $3.00 | F12: =$D$12*$E$12 -> $90.00 | J12: =J13+D12 -> 30 | K12: =$L$12/$J$12 -> $3.00 | L12: =L13+F12 -> $90.00

Sheet M28
A1: RESTAURANTE CAMINOS DE HERRADURA
A3: KARDEX
A5: Artículo: | B5: ='MATERIA PRIMA Y MATERIALES'!E37 -> SOBREMANTELES ROSADOS | E5: Unidad de medida: | G5: UNIDADES | I5: Codigo: | J5: ='MATERIA PRIMA Y MATERIALES'!D37 -> 1.1.04.28
E6: Fecha de Corte: | G6: =NOW() -> 2010-06-10T17:05:11.150
A8: FECHA | B8: ORDEN DE PRODUCCIÓN | C8: DETALLE | J8: EXISTENCIAS | M8: RESPONSABLE
D9: CANT. | E9: P.U. | F9: P.T. | G9: CANT. | H9: P.U. | I9: P.T. | J9: CANT. | K9: P.U. | L9: P.T.
J10: 25 | K10: $3.00 | L10: $75.00
A12: 2010-02-01 | C12: SITUACIÓN INICIAL | D12: 25 | E12: $3.00 | F12: =$D$12*$E$12 -> $75.00 | J12: =J13+D12 -> 25 | K12: =$L$12/$J$12 -> $3.00 | L12: =L13+F12 -> $75.00

Sheet M29
A1: RESTAURANTE CAMINOS DE HERRADURA
A3: KARDEX
A5: Artículo: | B5: ='MATERIA PRIMA Y MATERIALES'!E38 -> MANTELES COLORES M/1m | E5: Unidad de medida: | G5: UNIDADES | I5: Codigo: | J5: ='MATERIA PRIMA Y MATERIALES'!D38 -> 1.1.04.29
E6: Fecha de Corte: | G6: =NOW() -> 2010-06-10T17:05:11.150
A8: FECHA | B8: ORDEN DE PRODUCCIÓN | C8: DETALLE | J8: EXISTENCIAS | M8: RESPONSABLE
D9: CANT. | E9: P.U. | F9: P.T. | G9: CANT. | H9: P.U. | I9: P.T. | J9: CANT. | K9: P.U. | L9: P.T.
J10: 10 | K10: $6.00 | L10: $60.00
A12: 2010-02-01 | C12: SITUACIÓN INICIAL | D12: 10 | E12: $6.00 | F12: =$D$12*$E$12 -> $60.00 | J12: =J13+D12 -> 10 | K12: =$L$12/$J$12 -> $6.00 | L12: =L13+F12 -> $60.00

Sheet M30
A1: RESTAURANTE CAMINOS DE HERRADURA
A3: KARDEX
A5: Artículo: | B5: ='MATERIA PRIMA Y MATERIALES'!E39 -> VIDRIOS M/1m | E5: Unidad de medida: | G5: UNIDADES | I5: Codigo: | J5: ='MATERIA PRIMA Y MATERIALES'!D39 -> 1.1.04.30
E6: Fecha de Corte: | G6: =NOW() -> 2010-06-10T17:05:11.150
A8: FECHA | B8: ORDEN DE PRODUCCIÓN | C8: DETALLE | J8: EXISTENCIAS | M8: RESPONSABLE
D9: CANT. | E9: P.U. | F9: P.T. | G9: CANT. | H9: P.U. | I9: P.T. | J9: CANT. | K9: P.U. | L9: P.T.
J10: 10 | K10: $10.00 | L10: $100.00
A12: 2010-02-01 | C12: SITUACIÓN INICIAL | D12: 10 | E12: $10.00 | F12: =$D$12*$E$12 -> $100.00 | J12: =J13+D12 -> 10 | K12: =$L$12/$J$12 -> $10.00 | L12: =L13+F12 -> $100.00

Sheet M31
A1: RESTAURANTE CAMINOS DE HERRADURA
A3: KARDEX
A5: Artículo: | B5: ='MATERIA PRIMA Y MATERIALES'!E40 -> SALEROS | E5: Unidad de medida: | G5: UNIDADES | I5: Codigo: | J5: ='MATERIA PRIMA Y MATERIALES'!D40 -> 1.1.04.31
E6: Fecha de Corte: | G6: =NOW() -> 2010-06-10T17:05:11.150
A8: FECHA | B8: ORDEN DE PRODUCCIÓN | C8: DETALLE | J8: EXISTENCIAS | M8: RESPONSABLE
D9: CANT. | E9: P.U. | F9: P.T. | G9: CANT. | H9: P.U. | I9: P.T. | J9: CANT. | K9: P.U. | L9: P.T.
J10: 15 | K10: $0.30 | L10: $4.50
A12: 2010-02-01 | C12: SITUACIÓN INICIAL | D12: 15 | E12: $0.30 | F12: =$D$12*$E$12 -> $4.50 | J12: =J13+D12 -> 15 | K12: =$L$12/$J$12 -> $0.30 | L12: =L13+F12 -> $4.50

Sheet M32
A1: RESTAURANTE CAMINOS DE HERRADURA
A3: KARDEX
A5: Artículo: | B5: ='MATERIA PRIMA Y MATERIALES'!E41 -> CAJAS PARA CUBIERTOS | E5: Unidad de medida: | G5: UNIDADES | I5: Codigo: | J5: ='MATERIA PRIMA Y MATERIALES'!D41 -> 1.1.04.32
E6: Fecha de Corte: | G6: =NOW() -> 2010-06-10T17:05:11.150
A8: FECHA | B8: ORDEN DE PRODUCCIÓN | C8: DETALLE | J8: EXISTENCIAS | M8: RESPONSABLE
D9: CANT. | E9: P.U. | F9: P.T. | G9: CANT. | H9: P.U. | I9: P.T. | J9: CANT. | K9: P.U. | L9: P.T.
J10: 14 | K10: $1.00 | L10: $14.00
A12: 2010-02-01 | C12: SITUACIÍN INICIAL | D12: 14 | E12: $1.00 | F12: =$D$12*$E$12 -> $14.00 | J12: =J13+D12 -> 14 | K12: =$L$12/$J$12 -> $1.00 | L12: =L13+F12 -> $14.00

Sheet M33
A1: RESTAURANTE CAMINOS DE HERRADURA
A3: KARDEX
A5: Artículo: | B5: ='MATERIA PRIMA Y MATERIALES'!E42 -> BAR | E5: Unidad de medida: | G5: UNIDADES | I5: Codigo: | J5: ='MATERIA PRIMA Y MATERIALES'!D42 -> 1.1.04.33
E6: Fecha de Corte: | G6: =NOW() -> 2010-06-10T17:05:11.150
A8: FECHA | B8: ORDEN DE PRODUCCIÓN | C8: DETALLE | J8: EXISTENCIAS | M8: RESPONSABLE
D9: CANT. | E9: P.U. | F9: P.T. | G9: CANT. | H9: P.U. | I9: P.T. | J9: CANT. | K9: P.U. | L9: P.T.
J10: 1 | K10: $150.00 | L10: $150.00
A12: 2010-02-01 | C12: SITUACIÓN INICIAL | D12: 1 | E12: $150.00 | F12: =$D$12*$E$12 -> $150.00 | J12: =J13+D12 -> 1 | K12: =$L$12/$J$12 -> $150.00 | L12: =L13+F12 -> $150.00

Sheet M34
A1: RESTAURANTE CAMINOS DE HERRADURA
A3: KARDEX
A5: Artículo: | B5: ='MATERIA PRIMA Y MATERIALES'!E43 -> CUCHARAS | E5: Unidad de medida: | G5: UNIDADES | I5: Codigo: | J5: ='MATERIA PRIMA Y MATERIALES'!D43 -> 1.1.04.34
E6: Fecha de Corte: | G6: =NOW() -> 2010-06-10T17:05:11.150
A8: FECHA | B8: ORDEN DE PRODUCCIÓN | C8: DETALLE | J8: EXISTENCIAS | M8: RESPONSABLE
D9: CANT. | E9: P.U. | F9: P.T. | G9: CANT. | H9: P.U. | I9: P.T. | J9: CANT. | K9: P.U. | L9: P.T.
J10: 300 | K10: $0.35 | L10: $105.00
A12: 2010-02-01 | C12: SITUACIÓN INICIAL | D12: 300 | E12: $0.35 | F12: =$D$12*$E$12 -> $105.00 | J12: =J13+D12 -> 300 | K12: =$L$12/$J$12 -> $0.35 | L12: =L13+F12 -> $105.00

Sheet M35
A1: RESTAURANTE CAMINOS DE HERRADURA
A3: KARDEX
A5: Artículo: | B5: ='MATERIA PRIMA Y MATERIALES'!E44 -> CUCHILLOS DE MESA | E5: Unidad de medida: | G5: UNIDADES | I5: Codigo: | J5: ='MATERIA PRIMA Y MATERIALES'!D44 -> 1.1.04.35
E6: Fecha de Corte: | G6: =NOW() -> 2010-06-10T17:05:11.150
A8: FECHA | B8: ORDEN DE PRODUCCIÓN | C8: DETALLE | J8: EXISTENCIAS | M8: RESPONSABLE
D9: CANT. | E9: P.U. | F9: P.T. | G9: CANT. | H9: P.U. | I9: P.T. | J9: CANT. | K9: P.U. | L9: P.T.
J10: 250 | K10: $0.60 | L10: $150.00
A12: 2010-02-01 | C12: SITUACIÓN INICIAL | D12: 250 | E12: $0.60 | F12: =$D$12*$E$12 -> $150.00 | J12: =J13+D12 -> 250 | K12: =$L$12/$J$12 -> $0.60 | L12: =L13+F12 -> $150.00

Sheet M36
A1: RESTAURANTE CAMINOS DE HERRADURA
A3: KARDEX
A5: Artículo: | B5: ='MATERIA PRIMA Y MATERIALES'!E45 -> CUHARILLAS | E5: Unidad de medida: | G5: UNIDADES | I5: Codigo: | J5: ='MATERIA PRIMA Y MATERIALES'!D45 -> 1.1.04.36
E6: Fecha de Corte: | G6: =NOW() -> 2010-06-10T17:05:11.150
A8: FECHA | B8: ORDEN DE PRODUCCIÓN | C8: DETALLE | J8: EXISTENCIAS | M8: RESPONSABLE
D9: CANT. | E9: P.U. | F9: P.T. | G9: CANT. | H9: P.U. | I9: P.T. | J9: CANT. | K9: P.U. | L9: P.T.
J10: 135 | K10: $0.30 | L10: $40.50
A12: 2010-02-01 | C12: SITUACIÓN INICIAL | D12: 135 | E12: $0.30 | F12: =$D$12*$E$12 -> $40.50 | J12: =J13+D12 -> 135 | K12: =$L$12/$J$12 -> $0.30 | L12: =L13+F12 -> $40.50

Sheet M37
A1: RESTAURANTE CAMINOS DE HERRADURA
A3: KARDEX
A5: Artículo: | B5: ='MATERIA PRIMA Y MATERIALES'!E46 -> CUCHILLOS DE COCINA | E5: Unidad de medida: | G5: UNIDADES | I5: Codigo: | J5: ='MATERIA PRIMA Y MATERIALES'!D46 -> 1.1.04.37
E6: Fecha de Corte: | G6: =NOW() -> 2010-06-10T17:05:11.150
A8: FECHA | B8: ORDEN DE PRODUCCIÓN | C8: DETALLE | J8: EXISTENCIAS | M8: RESPONSABLE
D9: CANT. | E9: P.U. | F9: P.T. | G9: CANT. | H9: P.U. | I9: P.T. | J9: CANT. | K9: P.U. | L9: P.T.
J10: 18 | K10: $2.50 | L10: $45.00
A12: 2010-02-01 | C12: SITUACIÓN INICIAL | D12: 18 | E12: $2.50 | F12: =$D$12*$E$12 -> $45.00 | J12: =J13+D12 -> 18 | K12: =$L$12/$J$12 -> $2.50 | L12: =L13+F12 -> $45.00

Sheet M38
A1: RESTAURANTE CAMINOS DE HERRADURA
A3: KARDEX
A5: Artículo: | B5: ='MATERIA PRIMA Y MATERIALES'!E47 -> CUCHARETAS | E5: Unidad de medida: | G5: UNIDADES | I5: Codigo: | J5: ='MATERIA PRIMA Y MATERIALES'!D47 -> 1.1.04.38
E6: Fecha de Corte: | G6: =NOW() -> 2010-06-10T17:05:11.150
A8: FECHA | B8: ORDEN DE PRODUCCIÓN | C8: DETALLE | J8: EXISTENCIAS | M8: RESPONSABLE
D9: CANT. | E9: P.U. | F9: P.T. | G9: CANT. | H9: P.U. | I9: P.T. | J9: CANT. | K9: P.U. | L9: P.T.
J10: 10 | K10: $3.50 | L10: $35.00
A12: 2010-02-01 | C12: SITUACIÓN INICIAL | D12: 10 | E12: $3.50 | F12: =$D$12*$E$12 -> $35.00 | J12: =J13+D12 -> 10 | K12: =$L$12/$J$12 -> $3.50 | L12: =L13+F12 -> $35.00

Sheet M39
A1: RESTAURANTE CAMINOS DE HERRADURA
A3: KARDEX
A5: Artículo: | B5: ='MATERIA PRIMA Y MATERIALES'!E48 -> CUCHARONES | E5: Unidad de medida: | G5: UNIDADES | I5: Codigo: | J5: ='MATERIA PRIMA Y MATERIALES'!D48 -> 1.1.04.39
E6: Fecha de Corte: | G6: =NOW() -> 2010-06-10T17:05:11.150
A8: FECHA | B8: ORDEN DE PRODUCCIÓN | C8: DETALLE | J8: EXISTENCIAS | M8: RESPONSABLE
D9: CANT. | E9: P.U. | F9: P.T. | G9: CANT. | H9: P.U. | I9: P.T. | J9: CANT. | K9: P.U. | L9: P.T.
J10: 4 | K10: $8.00 | L10: $32.00
A12: 2010-02-01 | C12: SITUACIÓN INICIAIL | D12: 4 | E12: $8.00 | F12: =$D$12*$E$12 -> $32.00 | J12: =J13+D12 -> 4 | K12: =$L$12/$J$12 -> $8.00 | L12: =L13+F12 -> $32.00

Sheet M40
A1: RESTAURANTE CAMINOS DE HERRADURA
A3: KARDEX
A5: Artículo: | B5: ='MATERIA PRIMA Y MATERIALES'!E49 -> DIABLO | E5: Unidad de medida: | G5: UNIDADES | I5: Codigo: | J5: ='MATERIA PRIMA Y MATERIALES'!D49 -> 1.1.04.40
E6: Fecha de Corte: | G6: =NOW() -> 2010-06-10T17:05:11.150
A8: FECHA | B8: ORDEN DE PRODUCCIÓN | C8: DETALLE | J8: EXISTENCIAS | M8: RESPONSABLE
D9: CANT. | E9: P.U. | F9: P.T. | G9: CANT. | H9: P.U. | I9: P.T. | J9: CANT. | K9: P.U. | L9: P.T.
J10: 4 | K10: $6.00 | L10: $24.00
A12: 2010-02-01 | C12: SITUACIÓN INICIAL | D12: 4 | E12: $6.00 | F12: =$D$12*$E$12 -> $24.00 | J12: =J13+D12 -> 4 | K12: =$L$12/$J$12 -> $6.00 | L12: =L13+F12 -> $24.00

Sheet M41
A1: RESTAURANTE CAMINOS DE HERRADURA
A3: KARDEX
A5: Artículo: | B5: ='MATERIA PRIMA Y MATERIALES'!E50 -> PLATO SOPERO | E5: Unidad de medida: | G5: UNIDADES | I5: Codigo: | J5: ='MATERIA PRIMA Y MATERIALES'!D50 -> 1.1.04.41
E6: Fecha de Corte: | G6: =NOW() -> 2010-06-10T17:05:11.150
A8: FECHA | B8: ORDEN DE PRODUCCIÓN | C8: DETALLE | J8: EXISTENCIAS | M8: RESPONSABLE
D9: CANT. | E9: P.U. | F9: P.T. | G9: CANT. | H9: P.U. | I9: P.T. | J9: CANT. | K9: P.U. | L9: P.T.
J10: 240 | K10: $0.80 | L10: $192.00
A12: 2010-02-01 | C12: SITUACIÓN INICIAL | D12: 240 | E12: $0.80 | F12: =$D$12*$E$12 -> $192.00 | J12: =J13+D12 -> 240 | K12: =$L$12/$J$12 -> $0.80 | L12: =L13+F12 -> $192.00

Sheet M42
A1: RESTAURANTE CAMINOS DE HERRADURA
A3: KARDEX
A5: Artículo: | B5: ='MATERIA PRIMA Y MATERIALES'!E51 -> PLATO FUERTE | E5: Unidad de medida: | G5: UNIDADES | I5: Codigo: | J5: ='MATERIA PRIMA Y MATERIALES'!D51 -> 1.1.04.42
E6: Fecha de Corte: | G6: =NOW() -> 2010-06-10T17:05:11.150
A8: FECHA | B8: ORDEN DE PRODUCCIÓN | C8: DETALLE | J8: EXISTENCIAS | M8: RESPONSABLE
D9: CANT. | E9: P.U. | F9: P.T. | G9: CANT. | H9: P.U. | I9: P.T. | J9: CANT. | K9: P.U. | L9: P.T.
J10: 220 | K10: $1.30 | L10: $286.00
A12: 2010-02-01 | C12: SITUACIÓN INICIAL | D12: 220 | E12: $1.30 | F12: =$D$12*$E$12 -> $286.00 | J12: =J13+D12 -> 220 | K12: =$L$12/$J$12 -> $1.30 | L12: =L13+F12 -> $286.00

Sheet M43
A1: RESTAURANTE CAMINOS DE HERRADURA
A3: KARDEX
A5: Artículo: | B5: ='MATERIA PRIMA Y MATERIALES'!E52 -> PLATO ENTRADA | E5: Unidad de medida: | G5: UNIDADES | I5: Codigo: | J5: ='MATERIA PRIMA Y MATERIALES'!D52 -> 1.1.04.43
E6: Fecha de Corte: | G6: =NOW() -> 2010-06-10T17:05:11.150
A8: FECHA | B8: ORDEN DE PRODUCCIÓN | C8: DETALLE | J8: EXISTENCIAS | M8: RESPONSABLE
D9: CANT. | E9: P.U. | F9: P.T. | G9: CANT. | H9: P.U. | I9: P.T. | J9: CANT. | K9: P.U. | L9: P.T.
J10: 230 | K10: $0.70 | L10: $161.00
A12: 2010-02-01 | C12: SITUACIÓN INICIAL | D12: 230 | E12: $0.70 | F12: =$D$12*$E$12 -> $161.00 | J12: =J13+D12 -> 230 | K12: =$L$12/$J$12 -> $0.70 | L12: =L13+F12 -> $161.00

Sheet M44
A1: RESTAURANTE CAMINOS DE HERRADURA
A3: KARDEX
A5: Artículo: | B5: ='MATERIA PRIMA Y MATERIALES'!E53 -> PLATO POSTRE | E5: Unidad de medida: | G5: UNIDADES | I5: Codigo: | J5: ='MATERIA PRIMA Y MATERIALES'!D53 -> 1.1.04.44
E6: Fecha de Corte: | G6: =NOW() -> 2010-06-10T17:05:11.150
A8: FECHA | B8: ORDEN DE PRODUCCIÓN | C8: DETALLE | J8: EXISTENCIAS | M8: RESPONSABLE
D9: CANT. | E9: P.U. | F9: P.T. | G9: CANT. | H9: P.U. | I9: P.T. | J9: CANT. | K9: P.U. | L9: P.T.
J10: 50 | K10: $0.50 | L10: $25.00
A12: 2010-02-01 | C12: SITUACIÓN INICIAL | D12: 50 | E12: $0.50 | F12: =$D$12*$E$12 -> $25.00 | J12: =J13+D12 -> 50 | K12: =$L$12/$J$12 -> $0.50 | L12: =L13+F12 -> $25.00

Sheet M45
A1: RESTAURANTE CAMINOS DE HERRADURA
A3: KARDEX
A5: Artículo: | B5: ='MATERIA PRIMA Y MATERIALES'!E54 -> VASO | E5: Unidad de medida: | G5: UNIDADES | I5: Codigo: | J5: ='MATERIA PRIMA Y MATERIALES'!D54 -> 1.1.04.45
E6: Fecha de Corte: | G6: =NOW() -> 2010-06-10T17:05:11.150
A8: FECHA | B8: ORDEN DE PRODUCCIÓN | C8: DETALLE | J8: EXISTENCIAS | M8: RESPONSABLE
D9: CANT. | E9: P.U. | F9: P.T. | G9: CANT. | H9: P.U. | I9: P.T. | J9: CANT. | K9: P.U. | L9: P.T.
J10: 120 | K10: $0.80 | L10: $96.00
A12: 2010-02-01 | C12: SITUACIÓN INICIAL | D12: 120 | E12: $0.80 | F12: =$D$12*$E$12 -> $96.00 | J12: =J13+D12 -> 120 | K12: =$L$12/$J$12 -> $0.80 | L12: =L13+F12 -> $96.00

Sheet M46
A1: RESTAURANTE CAMINOS DE HERRADURA
A3: KARDEX
A5: Artículo: | B5: ='MATERIA PRIMA Y MATERIALES'!E55 -> COPA DE AGUA | E5: Unidad de medida: | G5: UNIDADES | I5: Codigo: | J5: ='MATERIA PRIMA Y MATERIALES'!D55 -> 1.1.04.46
E6: Fecha de Corte: | G6: =NOW() -> 2010-06-10T17:05:11.150
A8: FECHA | B8: ORDEN DE PRODUCCIÓN | C8: DETALLE | J8: EXISTENCIAS | M8: RESPONSABLE
D9: CANT. | E9: P.U. | F9: P.T. | G9: CANT. | H9: P.U. | I9: P.T. | J9: CANT. | K9: P.U. | L9: P.T.
J10: 50 | K10: $1.20 | L10: $60.00
A12: 2010-02-01 | C12: SITUACIÓN INICIAL | D12: 50 | E12: $1.20 | F12: =$D$12*$E$12 -> $60.00 | J12: =J13+D12 -> 50 | K12: =$L$12/$J$12 -> $1.20 | L12: =L13+F12 -> $60.00

Sheet M47
A1: RESTAURANTE CAMINOS DE HERRADURA
A3: KARDEX
A5: Artículo: | B5: ='MATERIA PRIMA Y MATERIALES'!E56 -> COPA DE VINO | E5: Unidad de medida: | G5: UNIDADES | I5: Codigo: | J5: ='MATERIA PRIMA Y MATERIALES'!D56 -> 1.1.04.47
E6: Fecha de Corte: | G6: =NOW() -> 2010-06-10T17:05:11.150
A8: FECHA | B8: ORDEN DE PRODUCCIÓN | C8: DETALLE | J8: EXISTENCIAS | M8: RESPONSABLE
D9: CANT. | E9: P.U. | F9: P.T. | G9: CANT. | H9: P.U. | I9: P.T. | J9: CANT. | K9: P.U. | L9: P.T.
J10: 95 | K10: $0.30 | L10: $28.50
A12: 2010-02-01 | C12: SITUACIÓN INICIAL | D12: 95 | E12: $0.30 | F12: =$D$12*$E$12 -> $28.50 | J12: =J13+D12 -> 95 | K12: =$L$12/$J$12 -> $0.30 | L12: =L13+F12 -> $28.50

Sheet M48
A1: RESTAURANTE CAMINOS DE HERRADURA
A3: KARDEX
A5: Artículo: | B5: ='MATERIA PRIMA Y MATERIALES'!E57 -> CENICEROS | E5: Unidad de medida: | G5: UNIDADES | I5: Codigo: | J5: ='MATERIA PRIMA Y MATERIALES'!D57 -> 1.1.04.48
E6: Fecha de Corte: | G6: =NOW() -> 2010-06-10T17:05:11.150
A8: FECHA | B8: ORDEN DE PRODUCCIÓN | C8: DETALLE | J8: EXISTENCIAS | M8: RESPONSABLE
D9: CANT. | E9: P.U. | F9: P.T. | G9: CANT. | H9: P.U. | I9: P.T. | J9: CANT. | K9: P.U. | L9: P.T.
J10: 25 | K10: $0.80 | L10: $20.00
A12: 2010-02-01 | C12: SITUACIÓN INICIAL | D12: 25 | E12: $0.80 | F12: =$D$12*$E$12 -> $20.00 | J12: =J13+D12 -> 25 | K12: =$L$12/$J$12 -> $0.80 | L12: =L13+F12 -> $20.00

Sheet M49
A1: RESTAURANTE CAMINOS DE HERRADURA
A3: KARDEX
A5: Artículo: | B5: ='MATERIA PRIMA Y MATERIALES'!E58 -> TENEDORES | E5: Unidad de medida: | G5: UNIDADES | I5: Codigo: | J5: ='MATERIA PRIMA Y MATERIALES'!D58 -> 1.1.04.49
E6: Fecha de Corte: | G6: =NOW() -> 2010-06-10T17:05:11.150
A8: FECHA | B8: ORDEN DE PRODUCCIÓN | C8: DETALLE | J8: EXISTENCIAS | M8: RESPONSABLE
D9: CANT. | E9: P.U. | F9: P.T. | G9: CANT. | H9: P.U. | I9: P.T. | J9: CANT. | K9: P.U. | L9: P.T.
J10: 250 | K10: $0.40 | L10: $100.00
A12: 2010-02-01 | C12: SITUACIÓN INICIAL | D12: 250 | E12: $0.40 | F12: =$D$12*$E$12 -> $100.00 | J12: =J13+D12 -> 250 | K12: =$L$12/$J$12 -> $0.40 | L12: =L13+F12 -> $100.00

Sheet M50
A1: RESTAURANTE CAMINOS DE HERRADURA
A3: KARDEX
A5: Artículo: | B5: ='MATERIA PRIMA Y MATERIALES'!E59 -> SERVILLETAS | E5: Unidad de medida: | G5: PAQUETES | I5: Codigo: | J5: ='MATERIA PRIMA Y MATERIALES'!D59 -> 1.1.04.50
E6: Fecha de Corte: | G6: =NOW() -> 2010-06-10T17:05:11.150
A8: FECHA | B8: ORDEN DE PRODUCCIÓN | C8: DETALLE | J8: EXISTENCIAS | M8: RESPONSABLE
D9: CANT. | E9: P.U. | F9: P.T. | G9: CANT. | H9: P.U. | I9: P.T. | J9: CANT. | K9: P.U. | L9: P.T.
J10: 391 | K10: $0.30 | L10: $117.30
A12: 2010-03-01 | B12: 500, 501,503, | C12: TRASPASO A LAS LAS O.P. | G12: 9 | H12: =K13 -> $0.30 | I12: =H12*G12 -> $2.70 | J12: =J13-G12 -> 391 | K12: =L12/J12 -> $0.30 | L12: =L13-I12 -> $117.30
A13: 2010-02-01 | C13: SITUACIÓN INICIAL | D13: 400 | E13: $0.30 | F13: =$D$13*$E$13 -> $120.00 | J13: =J14+D13 -> 400 | K13: =$L$13/$J$13 -> $0.30 | L13: =L14+F13 -> $120.00

Sheet M51 (hidden)
A1: RESTAURANTE CAMINOS DE HERRADURA
A3: KARDEX
A5: Artículo: | B5: ='MATERIA PRIMA Y MATERIALES'!E60 -> CONTRATOS | C5: CODIGO | E5: Unidad de medida: | G5: LIBRAS | I5: Codigo:
A6: Método: | B6: PROMEDIO PONDERADO | E6: Fecha de Corte: | G6: =NOW() -> 2010-06-10T17:05:11.150
A8: FECHA | B8: ORDEN DE PRODUCCIÓN | C8: DETALLE | J8: EXISTENCIAS | M8: RESPONSABLE
D9: CANT. | E9: P.U. | F9: P.T. | G9: CANT. | H9: P.U. | I9: P.T. | J9: CANT. | K9: P.U. | L9: P.T.

Sheet M52
A1: RESTAURANTE CAMINOS DE HERRADURA
A3: KARDEX
A5: Artículo: | B5: ='MATERIA PRIMA Y MATERIALES'!E60 -> CONTRATOS | E5: Unidad de medida: | G5: CONTRATOS | I5: Codigo: | J5: ='MATERIA PRIMA Y MATERIALES'!D60 -> 1.1.04.51
E6: Fecha de Corte: | G6: =NOW() -> 2010-06-10T17:05:11.150
A8: FECHA | B8: ORDEN DE PRODUCCIÓN | C8: DETALLE | J8: EXISTENCIAS | M8: RESPONSABLE
D9: CANT. | E9: P.U. | F9: P.T. | G9: CANT. | H9: P.U. | I9: P.T. | J9: CANT. | K9: P.U. | L9: P.T.
J10: 396 | K10: $0.25 | L10: $99.00
A12: 2010-03-01 | B12: 500,501,503 | C12: CONTRATOS | G12: 4 | H12: =K13 -> $0.25 | I12: =H12*G12 -> $1.00 | J12: =J13-G12 -> 396 | K12: =L12/J12 -> $0.25 | L12: =L13-I12 -> $99.00
A13: 2010-02-01 | C13: SITUACIÓN INICIAL | D13: 400 | E13: $0.25 | F13: =$D$13*$E$13 -> $100.00 | J13: =J14+D13 -> 400 | K13: =$L$13/$J$13 -> $0.25 | L13: =L14+F13 -> $100.00

Sheet M53
A1: RESTAURANTE CAMINOS DE HERRADURA
A3: KARDEX
A5: Artículo: | B5: ='MATERIA PRIMA Y MATERIALES'!E61 -> #'M53'!A1 | E5: Unidad de medida: | G5: LIBRAS | J5: ='MATERIA PRIMA Y MATERIALES'!D61 -> 1.1.04.52
E6: Fecha de Corte: | G6: =NOW() -> 2010-06-10T17:05:11.150
A8: FECHA | B8: ORDEN DE PRODUCCIÓN | C8: DETALLE | J8: EXISTENCIAS | M8: RESPONSABLE
D9: CANT. | E9: P.U. | F9: P.T. | G9: CANT. | H9: P.U. | I9: P.T. | J9: CANT. | K9: P.U. | L9: P.T.

Sheet S1
A1: RESTAURANTE CAMINOS DE HERRADURA
A3: KARDEX
A5: Artículo: | B5: ACEITE | C5: CODIGO | E5: Unidad de medida: | G5: LIBRAS
A6: Método: | B6: PROMEDIO PONDERADO | E6: Fecha de Corte: | G6: =NOW() -> 2010-06-10T17:05:11.150
A8: FECHA | B8: ORDEN DE PRODUCCIÓN | C8: DETALLE | J8: EXISTENCIAS | M8: RESPONSABLE
D9: CANT. | E9: P.U. | F9: P.T. | G9: CANT. | H9: P.U. | I9: P.T. | J9: CANT. | K9: P.U. | L9: P.T.

Sheet S2
A1: RESTAURANTE CAMINOS DE HERRADURA
A3: KARDEX
A5: Artículo: | B5: ACEITE | C5: CODIGO | E5: Unidad de medida: | G5: LIBRAS
A6: Método: | B6: PROMEDIO PONDERADO | E6: Fecha de Corte: | G6: =NOW() -> 2010-06-10T17:05:11.150
A8: FECHA | B8: ORDEN DE PRODUCCIÓN | C8: DETALLE | J8: EXISTENCIAS | M8: RESPONSABLE
D9: CANT. | E9: P.U. | F9: P.T. | G9: CANT. | H9: P.U. | I9: P.T. | J9: CANT. | K9: P.U. | L9: P.T.

Sheet S3
A1: RESTAURANTE CAMINOS DE HERRADURA
A3: KARDEX
A5: Artículo: | B5: ACEITE | C5: CODIGO | E5: Unidad de medida: | G5: LIBRAS
A6: Método: | B6: PROMEDIO PONDERADO | E6: Fecha de Corte: | G6: =NOW() -> 2010-06-10T17:05:11.150
A8: FECHA | B8: ORDEN DE PRODUCCIÓN | C8: DETALLE | J8: EXISTENCIAS | M8: RESPONSABLE
D9: CANT. | E9: P.U. | F9: P.T. | G9: CANT. | H9: P.U. | I9: P.T. | J9: CANT. | K9: P.U. | L9: P.T.

Sheet S4
A1: RESTAURANTE CAMINOS DE HERRADURA
A3: KARDEX
A5: Artículo: | B5: ACEITE | C5: CODIGO | E5: Unidad de medida: | G5: LIBRAS
A6: Método: | B6: PROMEDIO PONDERADO | E6: Fecha de Corte: | G6: =NOW() -> 2010-06-10T17:05:11.150
A8: FECHA | B8: ORDEN DE PRODUCCIÓN | C8: DETALLE | J8: EXISTENCIAS | M8: RESPONSABLE
D9: CANT. | E9: P.U. | F9: P.T. | G9: CANT. | H9: P.U. | I9: P.T. | J9: CANT. | K9: P.U. | L9: P.T.

Sheet S5
A1: RESTAURANTE CAMINOS DE HERRADURA
A3: KARDEX
A5: Artículo: | B5: ACEITE | C5: CODIGO | E5: Unidad de medida: | G5: LIBRAS
A6: Método: | B6: PROMEDIO PONDERADO | E6: Fecha de Corte: | G6: =NOW() -> 2010-06-10T17:05:11.150
A8: FECHA | B8: ORDEN DE PRODUCCIÓN | C8: DETALLE | J8: EXISTENCIAS | M8: RESPONSABLE
D9: CANT. | E9: P.U. | F9: P.T. | G9: CANT. | H9: P.U. | I9: P.T. | J9: CANT. | K9: P.U. | L9: P.T.

Sheet S6
A1: RESTAURANTE CAMINOS DE HERRADURA
A3: KARDEX
A5: Artículo: | B5: ACEITE | C5: CODIGO | E5: Unidad de medida: | G5: LIBRAS
A6: Método: | B6: PROMEDIO PONDERADO | E6: Fecha de Corte: | G6: =NOW() -> 2010-06-10T17:05:11.150
A8: FECHA | B8: ORDEN DE PRODUCCIÓN | C8: DETALLE | J8: EXISTENCIAS | M8: RESPONSABLE
D9: CANT. | E9: P.U. | F9: P.T. | G9: CANT. | H9: P.U. | I9: P.T. | J9: CANT. | K9: P.U. | L9: P.T.

Sheet S7
A1: RESTAURANTE CAMINOS DE HERRADURA
A3: KARDEX
A5: Artículo: | B5: ACEITE | C5: CODIGO | E5: Unidad de medida: | G5: LIBRAS
A6: Método: | B6: PROMEDIO PONDERADO | E6: Fecha de Corte: | G6: =NOW() -> 2010-06-10T17:05:11.150
A8: FECHA | B8: ORDEN DE PRODUCCIÓN | C8: DETALLE | J8: EXISTENCIAS | M8: RESPONSABLE
D9: CANT. | E9: P.U. | F9: P.T. | G9: CANT. | H9: P.U. | I9: P.T. | J9: CANT. | K9: P.U. | L9: P.T.

Sheet S8
A1: RESTAURANTE CAMINOS DE HERRADURA
A3: KARDEX
A5: Artículo: | B5: ACEITE | C5: CODIGO | E5: Unidad de medida: | G5: LIBRAS
A6: Método: | B6: PROMEDIO PONDERADO | E6: Fecha de Corte: | G6: =NOW() -> 2010-06-10T17:05:11.150
A8: FECHA | B8: ORDEN DE PRODUCCIÓN | C8: DETALLE | J8: EXISTENCIAS | M8: RESPONSABLE
D9: CANT. | E9: P.U. | F9: P.T. | G9: CANT. | H9: P.U. | I9: P.T. | J9: CANT. | K9: P.U. | L9: P.T.

Sheet S9
A1: RESTAURANTE CAMINOS DE HERRADURA
A3: KARDEX
A5: Artículo: | B5: ACEITE | C5: CODIGO | E5: Unidad de medida: | G5: LIBRAS
A6: Método: | B6: PROMEDIO PONDERADO | E6: Fecha de Corte: | G6: =NOW() -> 2010-06-10T17:05:11.150
A8: FECHA | B8: ORDEN DE PRODUCCIÓN | C8: DETALLE | J8: EXISTENCIAS | M8: RESPONSABLE
D9: CANT. | E9: P.U. | F9: P.T. | G9: CANT. | H9: P.U. | I9: P.T. | J9: CANT. | K9: P.U. | L9: P.T.

Sheet S10
A1: RESTAURANTE CAMINOS DE HERRADURA
A3: KARDEX
A5: Artículo: | B5: ACEITE | C5: CODIGO | E5: Unidad de medida: | G5: LIBRAS
A6: Método: | B6: PROMEDIO PONDERADO | E6: Fecha de Corte: | G6: =NOW() -> 2010-06-10T17:05:11.150
A8: FECHA | B8: ORDEN DE PRODUCCIÓN | C8: DETALLE | J8: EXISTENCIAS | M8: RESPONSABLE
D9: CANT. | E9: P.U. | F9: P.T. | G9: CANT. | H9: P.U. | I9: P.T. | J9: CANT. | K9: P.U. | L9: P.T.

Sheet S11
A1: RESTAURANTE CAMINOS DE HERRADURA
A3: KARDEX
A5: Artículo: | B5: ACEITE | C5: CODIGO | E5: Unidad de medida: | G5: LIBRAS
A6: Método: | B6: PROMEDIO PONDERADO | E6: Fecha de Corte: | G6: =NOW() -> 2010-06-10T17:05:11.150
A8: FECHA | B8: ORDEN DE PRODUCCIÓN | C8: DETALLE | J8: EXISTENCIAS | M8: RESPONSABLE
D9: CANT. | E9: P.U. | F9: P.T. | G9: CANT. | H9: P.U. | I9: P.T. | J9: CANT. | K9: P.U. | L9: P.T.

Sheet S12
A1: RESTAURANTE CAMINOS DE HERRADURA
A3: KARDEX
A5: Artículo: | B5: ACEITE | C5: CODIGO | E5: Unidad de medida: | G5: LIBRAS
A6: Método: | B6: PROMEDIO PONDERADO | E6: Fecha de Corte: | G6: =NOW() -> 2010-06-10T17:05:11.150
A8: FECHA | B8: ORDEN DE PRODUCCIÓN | C8: DETALLE | J8: EXISTENCIAS | M8: RESPONSABLE
D9: CANT. | E9: P.U. | F9: P.T. | G9: CANT. | H9: P.U. | I9: P.T. | J9: CANT. | K9: P.U. | L9: P.T.

Sheet S13
A1: RESTAURANTE CAMINOS DE HERRADURA
A3: KARDEX
A5: Artículo: | B5: ACEITE | C5: CODIGO | E5: Unidad de medida: | G5: LIBRAS
A6: Método: | B6: PROMEDIO PONDERADO | E6: Fecha de Corte: | G6: =NOW() -> 2010-06-10T17:05:11.150
A8: FECHA | B8: ORDEN DE PRODUCCIÓN | C8: DETALLE | J8: EXISTENCIAS | M8: RESPONSABLE
D9: CANT. | E9: P.U. | F9: P.T. | G9: CANT. | H9: P.U. | I9: P.T. | J9: CANT. | K9: P.U. | L9: P.T.

Sheet S14
A1: RESTAURANTE CAMINOS DE HERRADURA
A3: KARDEX
A5: Artículo: | B5: ACEITE | C5: CODIGO | E5: Unidad de medida: | G5: LIBRAS
A6: Método: | B6: PROMEDIO PONDERADO | E6: Fecha de Corte: | G6: =NOW() -> 2010-06-10T17:05:11.150
A8: FECHA | B8: ORDEN DE PRODUCCIÓN | C8: DETALLE | J8: EXISTENCIAS | M8: RESPONSABLE
D9: CANT. | E9: P.U. | F9: P.T. | G9: CANT. | H9: P.U. | I9: P.T. | J9: CANT. | K9: P.U. | L9: P.T.

Sheet S15
A1: RESTAURANTE CAMINOS DE HERRADURA
A3: KARDEX
A5: Artículo: | B5: ACEITE | C5: CODIGO | E5: Unidad de medida: | G5: LIBRAS
A6: Método: | B6: PROMEDIO PONDERADO | E6: Fecha de Corte: | G6: =NOW() -> 2010-06-10T17:05:11.150
A8: FECHA | B8: ORDEN DE PRODUCCIÓN | C8: DETALLE | J8: EXISTENCIAS | M8: RESPONSABLE
D9: CANT. | E9: P.U. | F9: P.T. | G9: CANT. | H9: P.U. | I9: P.T. | J9: CANT. | K9: P.U. | L9: P.T.

Sheet S16
A1: RESTAURANTE CAMINOS DE HERRADURA
A3: KARDEX
A5: Artículo: | B5: ACEITE | C5: CODIGO | E5: Unidad de medida: | G5: LIBRAS
A6: Método: | B6: PROMEDIO PONDERADO | E6: Fecha de Corte: | G6: =NOW() -> 2010-06-10T17:05:11.150
A8: FECHA | B8: ORDEN DE PRODUCCIÓN | C8: DETALLE | J8: EXISTENCIAS | M8: RESPONSABLE
D9: CANT. | E9: P.U. | F9: P.T. | G9: CANT. | H9: P.U. | I9: P.T. | J9: CANT. | K9: P.U. | L9: P.T.

Sheet S17
A1: RESTAURANTE CAMINOS DE HERRADURA
A3: KARDEX
A5: Artículo: | B5: ACEITE | C5: CODIGO | E5: Unidad de medida: | G5: LIBRAS
A6: Método: | B6: PROMEDIO PONDERADO | E6: Fecha de Corte: | G6: =NOW() -> 2010-06-10T17:05:11.150
A8: FECHA | B8: ORDEN DE PRODUCCIÓN | C8: DETALLE | J8: EXISTENCIAS | M8: RESPONSABLE
D9: CANT. | E9: P.U. | F9: P.T. | G9: CANT. | H9: P.U. | I9: P.T. | J9: CANT. | K9: P.U. | L9: P.T.

Sheet S18
A1: RESTAURANTE CAMINOS DE HERRADURA
A3: KARDEX
A5: Artículo: | B5: ACEITE | C5: CODIGO | E5: Unidad de medida: | G5: LIBRAS
A6: Método: | B6: PROMEDIO PONDERADO | E6: Fecha de Corte: | G6: =NOW() -> 2010-06-10T17:05:11.150
A8: FECHA | B8: ORDEN DE PRODUCCIÓN | C8: DETALLE | J8: EXISTENCIAS | M8: RESPONSABLE
D9: CANT. | E9: P.U. | F9: P.T. | G9: CANT. | H9: P.U. | I9: P.T. | J9: CANT. | K9: P.U. | L9: P.T.

Sheet S19
A1: RESTAURANTE CAMINOS DE HERRADURA
A3: KARDEX
A5: Artículo: | B5: ACEITE | C5: CODIGO | E5: Unidad de medida: | G5: LIBRAS
A6: Método: | B6: PROMEDIO PONDERADO | E6: Fecha de Corte: | G6: =NOW() -> 2010-06-10T17:05:11.150
A8: FECHA | B8: ORDEN DE PRODUCCIÓN | C8: DETALLE | J8: EXISTENCIAS | M8: RESPONSABLE
D9: CANT. | E9: P.U. | F9: P.T. | G9: CANT. | H9: P.U. | I9: P.T. | J9: CANT. | K9: P.U. | L9: P.T.

Sheet S20
A1: RESTAURANTE CAMINOS DE HERRADURA
A3: KARDEX
A5: Artículo: | B5: ACEITE | C5: CODIGO | E5: Unidad de medida: | G5: LIBRAS
A6: Método: | B6: PROMEDIO PONDERADO | E6: Fecha de Corte: | G6: =NOW() -> 2010-06-10T17:05:11.150
A8: FECHA | B8: ORDEN DE PRODUCCIÓN | C8: DETALLE | J8: EXISTENCIAS | M8: RESPONSABLE
D9: CANT. | E9: P.U. | F9: P.T. | G9: CANT. | H9: P.U. | I9: P.T. | J9: CANT. | K9: P.U. | L9: P.T.

Sheet S21
A1: RESTAURANTE CAMINOS DE HERRADURA
A3: KARDEX
A5: Artículo: | B5: ACEITE | C5: CODIGO | E5: Unidad de medida: | G5: LIBRAS
A6: Método: | B6: PROMEDIO PONDERADO | E6: Fecha de Corte: | G6: =NOW() -> 2010-06-10T17:05:11.150
A8: FECHA | B8: ORDEN DE PRODUCCIÓN | C8: DETALLE | J8: EXISTENCIAS | M8: RESPONSABLE
D9: CANT. | E9: P.U. | F9: P.T. | G9: CANT. | H9: P.U. | I9: P.T. | J9: CANT. | K9: P.U. | L9: P.T.

Sheet S22
A1: RESTAURANTE CAMINOS DE HERRADURA
A3: KARDEX
A5: Artículo: | B5: ACEITE | C5: CODIGO | E5: Unidad de medida: | G5: LIBRAS
A6: Método: | B6: PROMEDIO PONDERADO | E6: Fecha de Corte: | G6: =NOW() -> 2010-06-10T17:05:11.150
A8: FECHA | B8: ORDEN DE PRODUCCIÓN | C8: DETALLE | J8: EXISTENCIAS | M8: RESPONSABLE
D9: CANT. | E9: P.U. | F9: P.T. | G9: CANT. | H9: P.U. | I9: P.T. | J9: CANT. | K9: P.U. | L9: P.T.

Sheet S23
A1: RESTAURANTE CAMINOS DE HERRADURA
A3: KARDEX
A5: Artículo: | B5: ACEITE | C5: CODIGO | E5: Unidad de medida: | G5: LIBRAS
A6: Método: | B6: PROMEDIO PONDERADO | E6: Fecha de Corte: | G6: =NOW() -> 2010-06-10T17:05:11.150
A8: FECHA | B8: ORDEN DE PRODUCCIÓN | C8: DETALLE | J8: EXISTENCIAS | M8: RESPONSABLE
D9: CANT. | E9: P.U. | F9: P.T. | G9: CANT. | H9: P.U. | I9: P.T. | J9: CANT. | K9: P.U. | L9: P.T.

Sheet INFORME DE INVENTARIOS
B2: RESTAURANTE CAMINOS DE HERRADURA | G2: ACEITE | I2: LENTEJAS
G3: ACELGA | I3: LIMON
B4: INFORME DE INVENTARIOS - ACTIVOS | G4: ACHOTE | I4: LOMO
G5: AGUACATE | I5: MAGGI
B6: Artículo: | C6: TODOS | D6: Unidad de medida: | E6: Unidades | G6: AJO | I6: MAIZ
D7: Fecha de corte: | E7: =NOW() -> 2010-06-10T17:05:11.150 | G7: APANADURA | I7: MANTECA
G8: APIO | I8: MANTEQUILLA
B9: CODIGO | C9: PRODUCTO | D9: EXISTENCIAS | G9: ARROZ | I9: MARACUYA
D10: CANT. | E10: P.T. | G10: ARVEJA | I10: MELLOCOS
B11: ='MATERIA PRIMA Y MATERIALES'!D10 -> 1.1.04.01 | C11: =IF(MID('M1'!B5,1,1)="#","",'M1'!B5) -> COCINAS INDUSTRIALES GRANDES | D11: ='M1'!J10 -> 3 | E11: ='M1'!L10 -> $540.00 | G11: AZUCAR | I11: MORA
B12: ='MATERIA PRIMA Y MATERIALES'!D11 -> 1.1.04.02 | C12: =IF(MID('M2'!B5,1,1)="#","",'M2'!B5) -> COCINAS INDUSTRIALES PEQUEÑAS | D12: ='M2'!J10 -> 2 | E12: ='M2'!L10 -> $180.00 | G12: BROCOLI | I12: MOROCHO | J12: AVENA | L12: MELON
B13: ='MATERIA PRIMA Y MATERIALES'!D12 -> 1.1.04.03 | C13: =IF(MID('M3'!B5,1,1)="#","",'M3'!B5) -> REFRIGERADORA 13 PIES | D13: ='M3'!J10 -> 1 | E13: ='M3'!L10 -> $180.00 | G13: CALABAZA | I13: MORTADELA
B14: ='MATERIA PRIMA Y MATERIALES'!D13 -> 1.1.04.04 | C14: =IF(MID('M4'!B5,1,1)="#","",'M4'!B5) -> CONGELADOR | D14: ='M4'!J10 -> 1 | E14: ='M4'!L10 -> $700.00 | G14: CAMARONES | I14: MOSTAZA
B15: ='MATERIA PRIMA Y MATERIALES'!D14 -> 1.1.04.05 | C15: =IF(MID('M5'!B5,1,1)="#","",'M5'!B5) -> HORNO INDUSTRIAL | D15: ='M5'!J10 -> 1 | E15: ='M5'!L10 -> $500.00 | G15: CANELA | I15: NARANJILLA
B16: ='MATERIA PRIMA Y MATERIALES'!D15 -> 1.1.04.06 | C16: =IF(MID('M6'!B5,1,1)="#","",'M6'!B5) -> REPISA PARA VAJILLA | D16: ='M6'!J10 -> 1 | E16: ='M6'!L10 -> $150.00 | G16: CANGUIL | I16: NUEZ MOSCADA
B17: ='MATERIA PRIMA Y MATERIALES'!D16 -> 1.1.04.07 | C17: =IF(MID('M7'!B5,1,1)="#","",'M7'!B5) -> MESA | D17: ='M7'!J10 -> 1 | E17: ='M7'!L10 -> $90.00 | G17: CARNE MOLIDA | I17: OREGANO
B18: ='MATERIA PRIMA Y MATERIALES'!D17 -> 1.1.04.08 | C18: =IF(MID('M8'!B5,1,1)="#","",'M8'!B5) -> TANQUES DE GAS | D18: ='M8'!J10 -> 6 | E18: ='M8'!L10 -> $180.00 | G18: CEBOLLA | I18: PAPAS
B19: ='MATERIA PRIMA Y MATERIALES'!D18 -> 1.1.04.09 | C19: =IF(MID('M9'!B5,1,1)="#","",'M9'!B5) -> OLLAS DE PRESIÓN | D19: ='M9'!J10 -> 5 | E19: ='M9'!L10 -> $300.00 | G19: CEBOLLA LARGA | I19: PAPAYA
B20: ='MATERIA PRIMA Y MATERIALES'!D19 -> 1.1.04.10 | C20: =IF(MID('M10'!B5,1,1)="#","",'M10'!B5) -> OLLAS CON TAPAS GRANDES | D20: ='M10'!J10 -> 4 | E20: ='M10'!L10 -> $520.00 | G20: CEDRON | I20: PEPINILLO
B21: ='MATERIA PRIMA Y MATERIALES'!D20 -> 1.1.04.11 | C21: =IF(MID('M11'!B5,1,1)="#","",'M11'!B5) -> OLLAS CON TAPAS MEDIANAS | D21: ='M11'!J10 -> 8 | E21: ='M11'!L10 -> $480.00 | G21: CHAMPIÑONES | I21: PEREJIL
B22: ='MATERIA PRIMA Y MATERIALES'!D21 -> 1.1.04.12 | C22: =IF(MID('M12'!B5,1,1)="#","",'M12'!B5) -> OLLAS CON TAPAS PEQUEÑAS | D22: ='M12'!J10 -> 10 | E22: ='M12'!L10 -> $300.00 | G22: CHANCHO | I22: PESCADO
B23: ='MATERIA PRIMA Y MATERIALES'!D22 -> 1.1.04.13 | C23: =IF(MID('M13'!B5,1,1)="#","",'M13'!B5) -> VALDES | D23: ='M13'!J10 -> 4 | E23: ='M13'!L10 -> $16.00 | G23: CHOCHOS | I23: PIMIENTA
B24: ='MATERIA PRIMA Y MATERIALES'!D23 -> 1.1.04.14 | C24: =IF(MID('M14'!B5,1,1)="#","",'M14'!B5) -> PAILA | D24: ='M14'!J10 -> 5 | E24: ='M14'!L10 -> $400.00 | G24: CHUCHUCA | I24: PIMIENTA
B25: ='MATERIA PRIMA Y MATERIALES'!D24 -> 1.1.04.15 | C25: =IF(MID('M15'!B5,1,1)="#","",'M15'!B5) -> LICUADORA INDUSTRIAL | D25: ='M15'!J10 -> 1 | E25: ='M15'!L10 -> $500.00 | G25: CHULETA | I25: PIMIENTOS
B26: ='MATERIA PRIMA Y MATERIALES'!D25 -> 1.1.04.16 | C26: =IF(MID('M16'!B5,1,1)="#","",'M16'!B5) -> LICUADORA OSTER | D26: ='M16'!J10 -> 1 | E26: ='M16'!L10 -> $60.00 | G26: CLAVOS DE OLOR | I26: PIÑA
B27: ='MATERIA PRIMA Y MATERIALES'!D26 -> 1.1.04.17 | C27: =IF(MID('M17'!B5,1,1)="#","",'M17'!B5) -> FREIDORES | D27: ='M17'!J10 -> 6 | E27: ='M17'!L10 -> $27.00 | G27: COL | I27: PLATANO MADURO
B28: ='MATERIA PRIMA Y MATERIALES'!D27 -> 1.1.04.18 | C28: =IF(MID('M18'!B5,1,1)="#","",'M18'!B5) -> REFRIGERADORA MABE | D28: ='M18'!J10 -> 1 | E28: ='M18'!L10 -> $600.00 | G28: COL MORADA | I28: POLLOS
B29: ='MATERIA PRIMA Y MATERIALES'!D28 -> 1.1.04.19 | C29: =IF(MID('M19'!B5,1,1)="#","",'M19'!B5) -> DAEWOO | D29: ='M19'!J10 -> 2 | E29: ='M19'!L10 -> $300.00 | G29: COLIFLOR | I29: QUESO
B30: ='MATERIA PRIMA Y MATERIALES'!D29 -> 1.1.04.20 | C30: =IF(MID('M20'!B5,1,1)="#","",'M20'!B5) -> EQUIPO DE SONIDO SONY | D30: ='M20'!J10 -> 1 | E30: ='M20'!L10 -> $130.00 | G30: COMINO | I30: QUINOA
B31: ='MATERIA PRIMA Y MATERIALES'!D30 -> 1.1.04.21 | C31: =IF(MID('M21'!B5,1,1)="#","",'M21'!B5) -> MESAS 2 METROS | D31: ='M21'!J10 -> 28 | E31: ='M21'!L10 -> $1,680.00 | G31: CORVINA | I31: RABANO
B32: ='MATERIA PRIMA Y MATERIALES'!D31 -> 1.1.04.22 | C32: =IF(MID('M22'!B5,1,1)="#","",'M22'!B5) -> MESAS 1 METRO | D32: ='M22'!J10 -> 10 | E32: ='M22'!L10 -> $400.00 | G32: CREMA DE LECHE | I32: REMOLACHA
B33: ='MATERIA PRIMA Y MATERIALES'!D32 -> 1.1.04.23 | C33: =IF(MID('M23'!B5,1,1)="#","",'M23'!B5) -> SILLAS NEGRAS | D33: ='M23'!J10 -> 300 | E33: ='M23'!L10 -> $3,900.00 | G33: CULANTRO | I33: SAL
B34: ='MATERIA PRIMA Y MATERIALES'!D33 -> 1.1.04.24 | C34: =IF(MID('M24'!B5,1,1)="#","",'M24'!B5) -> MANTELES MANTECA M/2m | D34: ='M24'!J10 -> 48 | E34: ='M24'!L10 -> $720.00 | G34: FIDEOS | I34: SALCHICHAS
B35: ='MATERIA PRIMA Y MATERIALES'!D34 -> 1.1.04.25 | C35: =IF(MID('M25'!B5,1,1)="#","",'M25'!B5) -> SOBREMANTELES AMARILLOS | D35: ='M25'!J10 -> 30 | E35: ='M25'!L10 -> $90.00 | G35: FREJOL | I35: SALSA CHINA
B36: ='MATERIA PRIMA Y MATERIALES'!D35 -> 1.1.04.26 | C36: =IF(MID('M26'!B5,1,1)="#","",'M26'!B5) -> SOBREMANTELES ROJOS | D36: ='M26'!J10 -> 30 | E36: ='M26'!L10 -> $90.00 | G36: GUANABANA | I36: SALSA INGLESA
B37: ='MATERIA PRIMA Y MATERIALES'!D36 -> 1.1.04.27 | C37: =IF(MID('M27'!B5,1,1)="#","",'M27'!B5) -> SOBREMANTELES DORADOS | D37: ='M27'!J10 -> 30 | E37: ='M27'!L10 -> $90.00 | G37: GUAYABA | I37: SANDIA
B38: ='MATERIA PRIMA Y MATERIALES'!D37 -> 1.1.04.28 | C38: =IF(MID('M28'!B5,1,1)="#","",'M28'!B5) -> SOBREMANTELES ROSADOS | D38: ='M28'!J10 -> 25 | E38: ='M28'!L10 -> $75.00 | G38: HABAS | I38: SANGRE
B39: ='MATERIA PRIMA Y MATERIALES'!D38 -> 1.1.04.29 | C39: =IF(MID('M29'!B5,1,1)="#","",'M29'!B5) -> MANTELES COLORES M/1m | D39: ='M29'!J10 -> 10 | E39: ='M29'!L10 -> $60.00 | G39: HARINA | I39: TALLARIN
B40: ='MATERIA PRIMA Y MATERIALES'!D39 -> 1.1.04.30 | C40: =IF(MID('M30'!B5,1,1)="#","",'M30'!B5) -> VIDRIOS M/1m | D40: ='M30'!J10 -> 10 | E40: ='M30'!L10 -> $100.00 | G40: HIERBA LUISA | I40: TOMATE DE ARBOL
B41: ='MATERIA PRIMA Y MATERIALES'!D40 -> 1.1.04.31 | C41: =IF(MID('M31'!B5,1,1)="#","",'M31'!B5) -> SALEROS | D41: ='M31'!J10 -> 15 | E41: ='M31'!L10 -> $4.50 | G41: HIGADO | I41: TOMATE RIÑON
B42: ='MATERIA PRIMA Y MATERIALES'!D41 -> 1.1.04.32 | C42: =IF(MID('M32'!B5,1,1)="#","",'M32'!B5) -> CAJAS PARA CUBIERTOS | D42: ='M32'!J10 -> 14 | E42: ='M32'!L10 -> $14.00 | G42: HUEVOS | I42: TOSINO
B43: ='MATERIA PRIMA Y MATERIALES'!D42 -> 1.1.04.33 | C43: =IF(MID('M33'!B5,1,1)="#","",'M33'!B5) -> BAR | D43: ='M33'!J10 -> 1 | E43: ='M33'!L10 -> $150.00
E44: =SUM(E11:E43) -> $13,526.50
D45: TIEMPO DEP.
D46: 5 | E46: AÑOS
D47: 0 | E47: MESES
D48: =((E44/10)/12)*((D46*12)+D47) -> $6,763.25
B51: 1.1.04.34 | C51: =IF(MID('M34'!B5,1,1)="#","",'M34'!B5) -> CUCHARAS | D51: ='M34'!J10 -> 300 | E51: ='M34'!L10 -> $105.00 | G51: LECHE | I51: VERDE
B52: 1.1.04.35 | C52: =IF(MID('M35'!B5,1,1)="#","",'M35'!B5) -> CUCHILLOS DE MESA | D52: ='M35'!J10 -> 250 | E52: ='M35'!L10 -> $150.00 | G52: LECHUGA | I52: YERBA BUENA
B53: 1.1.04.36 | C53: =IF(MID('M36'!B5,1,1)="#","",'M36'!B5) -> CUHARILLAS | D53: ='M36'!J10 -> 135 | E53: ='M36'!L10 -> $40.50 | G53: LENGUA | I53: YUCA
B54: 1.1.04.37 | C54: =IF(MID('M37'!B5,1,1)="#","",'M37'!B5) -> CUCHILLOS DE COCINA | D54: ='M37'!J10 -> 18 | E54: ='M37'!L10 -> $45.00 | I54: ZANAHORIA BLANCA
B55: 1.1.04.38 | C55: =IF(MID('M38'!B5,1,1)="#","",'M38'!B5) -> CUCHARETAS | D55: ='M38'!J10 -> 10 | E55: ='M38'!L10 -> $35.00 | I55: ZANAHORIA AMARILLA
B56: 1.1.04.39 | C56: =IF(MID('M39'!B5,1,1)="#","",'M39'!B5) -> CUCHARONES | D56: ='M39'!J10 -> 4 | E56: ='M39'!L10 -> $32.00
B57: 1.1.04.40 | C57: =IF(MID('M40'!B5,1,1)="#","",'M40'!B5) -> DIABLO | D57: ='M40'!J10 -> 4 | E57: ='M40'!L10 -> $24.00
B58: 1.1.04.41 | C58: =IF(MID('M41'!B5,1,1)="#","",'M41'!B5) -> PLATO SOPERO | D58: ='M41'!J10 -> 240 | E58: ='M41'!L10 -> $192.00
B59: 1.1.04.42 | C59: =IF(MID('M42'!B5,1,1)="#","",'M42'!B5) -> PLATO FUERTE | D59: ='M42'!J10 -> 220 | E59: ='M42'!L10 -> $286.00
B60: 1.1.04.43 | C60: =IF(MID('M43'!B5,1,1)="#","",'M43'!B5) -> PLATO ENTRADA | D60: ='M43'!J10 -> 230 | E60: ='M43'!L10 -> $161.00
B61: 1.1.04.44 | C61: =IF(MID('M44'!B5,1,1)="#","",'M44'!B5) -> PLATO POSTRE | D61: ='M44'!J10 -> 50 | E61: ='M44'!L10 -> $25.00
B62: 1.1.04.45 | C62: =IF(MID('M45'!B5,1,1)="#","",'M45'!B5) -> VASO | D62: ='M45'!J10 -> 120 | E62: ='M45'!L10 -> $96.00
B63: 1.1.04.46 | C63: =IF(MID('M46'!B5,1,1)="#","",'M46'!B5) -> COPA DE AGUA | D63: ='M46'!J10 -> 50 | E63: ='M46'!L10 -> $60.00
B64: 1.1.04.47 | C64: =IF(MID('M47'!B5,1,1)="#","",'M47'!B5) -> COPA DE VINO | D64: ='M47'!J10 -> 95 | E64: ='M47'!L10 -> $28.50
B65: 1.1.04.48 | C65: =IF(MID('M48'!B5,1,1)="#","",'M48'!B5) -> CENICEROS | D65: ='M48'!J10 -> 25 | E65: ='M48'!L10 -> $20.00
B66: 1.1.04.49 | C66: =IF(MID('M49'!B5,1,1)="#","",'M49'!B5) -> TENEDORES | D66: ='M49'!J10 -> 250 | E66: ='M49'!L10 -> $100.00
E67: =SUM(E51:E66) -> $1,400.00
D68: TIEMPO DEP.
D69: 1 | E69: AÑOS
D70: 0 | E70: MESES
D71: =((E67/3)/12)*((D69*12)+D70) -> $466.67
B75: 1.1.04.50 | C75: SERVILLETAS PAQUETES | D75: ='M50'!J10 -> 391 | E75: ='M50'!L10 -> $117.30
B76: 1.1.04.51 | C76: CONTRATOS | D76: ='M52'!J10 -> 396 | E76: ='M52'!L10 -> $99.00

Sheet REPORTES
A1: RESTAURANTE CAMINOS DE HERRADURA
A3: REPORTE DE INGRESOS Y REQUISICIONES
A5: Unidad de medida: | C5: LIBRAS
A6: Fecha de Corte: | C6: =NOW() -> 2010-06-10T17:05:11.150
A8: FECHA | B8: ORDEN DE PRODUCCIÓN | C8: DETALLE | D8: ENTRADAS | G8: SALIDAS
D9: CANT. | E9: P.U. | F9: P.T. | G9: CANT. | H9: P.U. | I9: P.T.
D12: TOTAL | F12: =SUM(F10:F11) -> 0 | G12: TOTAL | I12: =SUM(I10:I11) -> 0 | J12: =F12-I12 -> 0
